[Event "*** Titled Tuesday Blitz"]
[Site "Chess.com"]
[Date "2020.03.03"]
[Round "8"]
[White "champ2005"]
[Black "mbojan"]
[Result "1/2-1/2"]
[WhiteElo "2956"]
[BlackElo "2683"]
[TimeControl "180+1"]
[EndTime "14:38:38 PST"]
[Termination "Game drawn by repetition"]

1. f4 {[%clk 0:03:00.9]} 1... d5 {[%clk 0:02:59.5]} 2. Nf3 {[%clk 0:03:00.4]}
2... Nf6 {[%clk 0:02:59.7]} 3. g3 {[%clk 0:03:00.6]} 3... g6 {[%clk 0:02:59.9]}
4. Bg2 {[%clk 0:03:01.1]} 4... Bg7 {[%clk 0:03:00.5]} 5. O-O {[%clk 0:03:02]}
5... O-O {[%clk 0:03:01.1]} 6. d3 {[%clk 0:03:02.6]} 6... c5 {[%clk 0:02:57.7]}
7. c3 {[%clk 0:03:02.8]} 7... Nc6 {[%clk 0:02:57.8]} 8. Na3 {[%clk 0:03:02.2]}
8... b6 {[%clk 0:02:49.2]} 9. Qc2 {[%clk 0:03:01.8]} 9... Bb7 {[%clk 0:02:46]}
10. e4 {[%clk 0:03:00.4]} 10... d4 {[%clk 0:02:45.8]} 11. Bd2 {[%clk 0:02:45.9]}
11... Qd7 {[%clk 0:02:42.4]} 12. Rae1 {[%clk 0:02:41.2]} 12... Rfd8 {[%clk
0:02:42.1]} 13. c4 {[%clk 0:02:38]} 13... Ng4 {[%clk 0:02:31.1]} 14. h3 {[%clk
0:02:24.2]} 14... Ne3 {[%clk 0:02:30.4]} 15. Bxe3 {[%clk 0:02:24.3]} 15... dxe3
{[%clk 0:02:30.7]} 16. Rxe3 {[%clk 0:02:24.9]} 16... Nd4 {[%clk 0:02:31]} 17.
Qb1 {[%clk 0:02:20.7]} 17... Nxf3+ {[%clk 0:02:13.5]} 18. Rexf3 {[%clk
0:02:21.6]} 18... Qd4+ {[%clk 0:02:13.6]} 19. R1f2 {[%clk 0:02:15.1]} 19... a6
{[%clk 0:02:09.5]} 20. Kh2 {[%clk 0:02:11.5]} 20... h5 {[%clk 0:02:09.1]} 21.
Qf1 {[%clk 0:01:58.9]} 21... Bc6 {[%clk 0:01:55.4]} 22. f5 {[%clk 0:01:43.7]}
22... Qe5 {[%clk 0:01:55]} 23. Kh1 {[%clk 0:01:32.1]} 23... e6 {[%clk 0:01:45]}
24. g4 {[%clk 0:01:21.4]} 24... exf5 {[%clk 0:01:27.8]} 25. gxh5 {[%clk
0:00:55.2]} 25... fxe4 {[%clk 0:01:06.2]} 26. Rxf7 {[%clk 0:00:56.1]} 26... e3
{[%clk 0:01:06.6]} 27. Bxc6 {[%clk 0:00:39.6]} 27... exf2 {[%clk 0:01:06.6]} 28.
Rxf2 {[%clk 0:00:37.2]} 28... Rac8 {[%clk 0:01:03.9]} 29. Bd5+ {[%clk
0:00:28.3]} 29... Rxd5 {[%clk 0:01:03.8]} 30. cxd5 {[%clk 0:00:29.2]} 30...
Qxd5+ {[%clk 0:01:04.2]} 31. Qg2 {[%clk 0:00:29.6]} 31... Qxh5 {[%clk
0:01:00.1]} 32. Nc4 {[%clk 0:00:26.7]} 32... Re8 {[%clk 0:00:38.9]} 33. Nxb6
{[%clk 0:00:19.9]} 33... Re3 {[%clk 0:00:35.4]} 34. Qd5+ {[%clk 0:00:14.3]}
34... Qxd5+ {[%clk 0:00:34.2]} 35. Nxd5 {[%clk 0:00:15.2]} 35... Rxh3+ {[%clk
0:00:34.5]} 36. Kg2 {[%clk 0:00:15.8]} 36... Rxd3 {[%clk 0:00:34.9]} 37. Nc7
{[%clk 0:00:16.2]} 37... Bd4 {[%clk 0:00:31]} 38. Rc2 {[%clk 0:00:14.4]} 38...
a5 {[%clk 0:00:25.8]} 39. Ne6 {[%clk 0:00:14.8]} 39... a4 {[%clk 0:00:25.5]} 40.
Nf4 {[%clk 0:00:13.4]} 40... Rd1 {[%clk 0:00:22.8]} 41. Nxg6 {[%clk 0:00:07.8]}
41... Rg1+ {[%clk 0:00:22.5]} 42. Kf3 {[%clk 0:00:07.5]} 42... Rxg6 {[%clk
0:00:23.4]} 43. Ke4 {[%clk 0:00:07.7]} 43... Kf7 {[%clk 0:00:23.2]} 44. Kd5
{[%clk 0:00:08]} 44... Rg5+ {[%clk 0:00:22.8]} 45. Kc4 {[%clk 0:00:08.4]} 45...
Rg3 {[%clk 0:00:20.2]} 46. Kb5 {[%clk 0:00:06.4]} 46... a3 {[%clk 0:00:20.2]}
47. b3 {[%clk 0:00:06.7]} 47... Ke6 {[%clk 0:00:18.5]} 48. Rh2 {[%clk 0:00:06]}
48... Rf3 {[%clk 0:00:16.4]} 49. Ka4 {[%clk 0:00:06.1]} 49... Bb2 {[%clk
0:00:15.9]} 50. Rd2 {[%clk 0:00:05.8]} 50... Ke5 {[%clk 0:00:15]} 51. Kb5 {[%clk
0:00:06]} 51... Rc3 {[%clk 0:00:15.2]} 52. Re2+ {[%clk 0:00:05.6]} 52... Kd4
{[%clk 0:00:15.1]} 53. Rd2+ {[%clk 0:00:06.1]} 53... Rd3 {[%clk 0:00:15.5]} 54.
Rh2 {[%clk 0:00:04.4]} 54... Re3 {[%clk 0:00:14]} 55. Rh4+ {[%clk 0:00:04.5]}
55... Kd3 {[%clk 0:00:13.2]} 56. Kxc5 {[%clk 0:00:04.8]} 56... Kc2 {[%clk
0:00:13.8]} 57. Rh1 {[%clk 0:00:04.2]} 57... Re2 {[%clk 0:00:11.9]} 58. b4
{[%clk 0:00:04.3]} 58... Be5 {[%clk 0:00:11.4]} 59. b5 {[%clk 0:00:04.2]} 59...
Kb2 {[%clk 0:00:11.9]} 60. b6 {[%clk 0:00:04.4]} 60... Kxa2 {[%clk 0:00:12.4]}
61. b7 {[%clk 0:00:05.3]} 61... Rb2 {[%clk 0:00:11.8]} 62. Kc6 {[%clk
0:00:05.2]} 62... Bc3 {[%clk 0:00:09.8]} 63. Rh3 {[%clk 0:00:03.6]} 63... Be5
{[%clk 0:00:09.5]} 64. Rh5 {[%clk 0:00:03.5]} 64... Bf4 {[%clk 0:00:09.4]} 65.
Rh4 {[%clk 0:00:03.5]} 65... Bc1 {[%clk 0:00:08.9]} 66. Rh8 {[%clk 0:00:03.2]}
66... Bf4 {[%clk 0:00:07.8]} 67. Rh4 {[%clk 0:00:03.1]} 67... Rc2+ {[%clk
0:00:05.2]} 68. Kd5 {[%clk 0:00:03]} 68... Bc7 {[%clk 0:00:04.2]} 69. Rh7 {[%clk
0:00:03.5]} 69... Bb8 {[%clk 0:00:02]} 70. Rh8 {[%clk 0:00:03.9]} 70... Bg3
{[%clk 0:00:02.6]} 71. Rh3 {[%clk 0:00:03.6]} 71... Bf4 {[%clk 0:00:03.1]} 72.
Rh4 {[%clk 0:00:03.7]} 72... Bg3 {[%clk 0:00:03.6]} 73. Rh3 {[%clk 0:00:03.8]}
73... Bc7 {[%clk 0:00:04.3]} 74. Rh7 {[%clk 0:00:03.7]} 74... Bb8 {[%clk
0:00:03.8]} 75. Rh8 {[%clk 0:00:03.9]} 75... Rd2+ {[%clk 0:00:04]} 76. Kc6
{[%clk 0:00:03.9]} 76... Bf4 {[%clk 0:00:04.1]} 77. Rh4 {[%clk 0:00:03.8]} 77...
Bg3 {[%clk 0:00:02.5]} 78. Rh3 {[%clk 0:00:03.9]} 78... Bh2 {[%clk 0:00:02.9]}
79. Rxh2 {[%clk 0:00:03.7]} 79... Rxh2 {[%clk 0:00:03.8]} 80. b8=Q {[%clk
0:00:04]} 80... Rc2+ {[%clk 0:00:04.7]} 81. Kd5 {[%clk 0:00:04.5]} 81... Rb2
{[%clk 0:00:05.6]} 82. Qf4 {[%clk 0:00:03.7]} 82... Rc2 {[%clk 0:00:05.1]} 83.
Qe4 {[%clk 0:00:03.2]} 83... Kb2 {[%clk 0:00:05.6]} 84. Qb4+ {[%clk 0:00:03.6]}
84... Ka2 {[%clk 0:00:05.6]} 85. Kd4 {[%clk 0:00:04.2]} 85... Rb2 {[%clk
0:00:05.3]} 86. Qa4 {[%clk 0:00:04.2]} 86... Rb3 {[%clk 0:00:03.9]} 87. Kc4
{[%clk 0:00:04.1]} 87... Rb2 {[%clk 0:00:03.7]} 88. Kc3 {[%clk 0:00:04.3]} 88...
Rb1 {[%clk 0:00:04.3]} 89. Qc4+ {[%clk 0:00:04.4]} 89... Ka1 {[%clk 0:00:04.7]}
90. Qd4 {[%clk 0:00:04.8]} 90... Rb2 {[%clk 0:00:04.8]} 91. Qd1+ {[%clk
0:00:04.8]} 91... Ka2 {[%clk 0:00:05.1]} 92. Qe1 {[%clk 0:00:04.4]} 92... Rb1
{[%clk 0:00:04.6]} 93. Qe6+ {[%clk 0:00:03.9]} 93... Ka1 {[%clk 0:00:05.1]} 94.
Qa6 {[%clk 0:00:03.8]} 94... Ka2 {[%clk 0:00:05.2]} 95. Qc4+ {[%clk 0:00:04.1]}
95... Ka1 {[%clk 0:00:05.4]} 96. Qa4 {[%clk 0:00:04.5]} 96... Ka2 {[%clk
0:00:05.5]} 97. Qd4 {[%clk 0:00:04.3]} 97... Rb3+ {[%clk 0:00:05.2]} 98. Kc2
{[%clk 0:00:04.3]} 98... Rb2+ {[%clk 0:00:06.1]} 99. Kc1 {[%clk 0:00:04.2]}
99... Rb1+ {[%clk 0:00:06.5]} 100. Kc2 {[%clk 0:00:04.7]} 100... Rb2+ {[%clk
0:00:07.4]} 101. Kc3 {[%clk 0:00:04.9]} 101... Rb3+ {[%clk 0:00:07.9]} 102. Kc4
{[%clk 0:00:05.4]} 102... Rb2 {[%clk 0:00:08.8]} 103. Qd1 {[%clk 0:00:04.8]}
103... Rb1 {[%clk 0:00:08.1]} 104. Qa4 {[%clk 0:00:04.8]} 104... Rb2 {[%clk
0:00:09]} 105. Qd1 {[%clk 0:00:04.9]} 105... Rb1 {[%clk 0:00:09.2]} 106. Qd4
{[%clk 0:00:05.2]} 106... Rb2 {[%clk 0:00:10.1]} 107. Kc3 {[%clk 0:00:05.4]}
107... Rb3+ {[%clk 0:00:10.1]} 1/2-1/2

[Event "*** Titled Tuesday Blitz"]
[Site "Chess.com"]
[Date "2020.03.03"]
[Round "9"]
[White "nocnypako"]
[Black "moro182"]
[Result "0-1"]
[WhiteElo "2591"]
[BlackElo "2707"]
[TimeControl "180+1"]
[EndTime "14:42:28 PST"]
[Termination "moro182 won by resignation"]

1. d4 {[%clk 0:02:53.6]} 1... Nf6 {[%clk 0:02:59.1]} 2. c4 {[%clk 0:02:53]} 2...
e6 {[%clk 0:02:59.6]} 3. Nc3 {[%clk 0:02:52]} 3... d5 {[%clk 0:03:00.2]} 4. cxd5
{[%clk 0:02:50.4]} 4... exd5 {[%clk 0:03:01.1]} 5. Bg5 {[%clk 0:02:50.1]} 5...
c6 {[%clk 0:03:01.7]} 6. Qc2 {[%clk 0:02:49.1]} 6... h6 {[%clk 0:03:01.9]} 7.
Bh4 {[%clk 0:02:41.9]} 7... Be6 {[%clk 0:03:00.3]} 8. e3 {[%clk 0:02:41.9]} 8...
Nbd7 {[%clk 0:02:59.4]} 9. Bd3 {[%clk 0:02:42]} 9... g5 {[%clk 0:02:59.4]} 10.
Bg3 {[%clk 0:02:41.1]} 10... Nh5 {[%clk 0:03:00.3]} 11. Bf5 {[%clk 0:02:36.6]}
11... Qf6 {[%clk 0:02:55]} 12. Bxe6 {[%clk 0:02:35.6]} 12... fxe6 {[%clk
0:02:55.9]} 13. Be5 {[%clk 0:02:17.9]} 13... Nxe5 {[%clk 0:02:53.4]} 14. dxe5
{[%clk 0:02:18.8]} 14... Qf5 {[%clk 0:02:52]} 15. e4 {[%clk 0:02:06.4]} 15...
Qxe5 {[%clk 0:02:47.7]} 16. Nf3 {[%clk 0:02:04.9]} 16... Qg7 {[%clk 0:02:46.8]}
17. exd5 {[%clk 0:01:55.3]} 17... exd5 {[%clk 0:02:47.7]} 18. O-O {[%clk
0:01:44]} 18... O-O-O {[%clk 0:02:46.1]} 19. Rfd1 {[%clk 0:01:05.1]} 19... Kb8
{[%clk 0:02:43.5]} 20. Rab1 {[%clk 0:01:04]} 20... Nf4 {[%clk 0:02:41]} 21. b4
{[%clk 0:01:03.8]} 21... Qxc3 {[%clk 0:02:40.5]} 0-1

[Event "*** Titled Tuesday Blitz"]
[Site "Chess.com"]
[Date "2020.03.03"]
[Round "9"]
[White "ehrenfeld"]
[Black "Saitama_Hero"]
[Result "0-1"]
[WhiteElo "2469"]
[BlackElo "2330"]
[TimeControl "180+1"]
[EndTime "14:43:00 PST"]
[Termination "Saitama_Hero won by resignation"]

1. e4 {[%clk 0:03:00.9]} 1... d6 {[%clk 0:02:58.9]} 2. d4 {[%clk 0:03:00.3]}
2... Nf6 {[%clk 0:02:56.9]} 3. Nc3 {[%clk 0:03:00.1]} 3... c6 {[%clk 0:02:56.8]}
4. Nge2 {[%clk 0:02:52.7]} 4... Qa5 {[%clk 0:02:44.7]} 5. f3 {[%clk 0:02:42.9]}
5... e5 {[%clk 0:02:44.8]} 6. Be3 {[%clk 0:02:40.4]} 6... Nbd7 {[%clk
0:02:39.5]} 7. Qd2 {[%clk 0:02:40]} 7... b5 {[%clk 0:02:38.3]} 8. a4 {[%clk
0:02:31.1]} 8... b4 {[%clk 0:02:37.5]} 9. Nd1 {[%clk 0:02:29.8]} 9... d5 {[%clk
0:02:37.7]} 10. Nf2 {[%clk 0:02:26.9]} 10... Be7 {[%clk 0:02:18.7]} 11. c3
{[%clk 0:02:05.8]} 11... O-O {[%clk 0:02:15.9]} 12. Ng3 {[%clk 0:02:05.4]} 12...
bxc3 {[%clk 0:02:13]} 13. bxc3 {[%clk 0:02:05]} 13... Rd8 {[%clk 0:02:12]} 14.
Nf5 {[%clk 0:01:55.7]} 14... Bf8 {[%clk 0:02:11.3]} 15. Bd3 {[%clk 0:01:48.4]}
15... exd4 {[%clk 0:02:10.1]} 16. Bxd4 {[%clk 0:01:48.1]} 16... dxe4 {[%clk
0:02:04]} 17. fxe4 {[%clk 0:01:42.9]} 17... Ne5 {[%clk 0:01:49.2]} 18. O-O
{[%clk 0:01:22.9]} 18... Bxf5 {[%clk 0:01:46]} 19. exf5 {[%clk 0:01:22]} 19...
Rxd4 {[%clk 0:01:45.9]} 0-1

[Event "*** Titled Tuesday Blitz"]
[Site "Chess.com"]
[Date "2020.03.03"]
[Round "9"]
[White "VerdeNotte"]
[Black "amiralfio"]
[Result "1-0"]
[WhiteElo "2760"]
[BlackElo "2608"]
[TimeControl "180+1"]
[EndTime "14:43:32 PST"]
[Termination "VerdeNotte won by resignation"]

1. Nf3 {[%clk 0:02:57.7]} 1... f5 {[%clk 0:02:58.3]} 2. d3 {[%clk 0:02:55.3]}
2... Nc6 {[%clk 0:02:58.1]} 3. e4 {[%clk 0:02:54.9]} 3... e5 {[%clk 0:02:49.5]}
4. d4 {[%clk 0:02:55]} 4... fxe4 {[%clk 0:02:45.7]} 5. Nxe5 {[%clk 0:02:55]}
5... Nf6 {[%clk 0:02:46.1]} 6. Bg5 {[%clk 0:02:41]} 6... d6 {[%clk 0:02:46]} 7.
Nxc6 {[%clk 0:02:30.7]} 7... bxc6 {[%clk 0:02:46.9]} 8. d5 {[%clk 0:02:26.5]}
8... cxd5 {[%clk 0:02:31.3]} 9. Bb5+ {[%clk 0:02:25.5]} 9... Bd7 {[%clk
0:02:23.3]} 10. Bxf6 {[%clk 0:02:23.5]} 10... Qxf6 {[%clk 0:02:18.7]} 11. Qxd5
{[%clk 0:02:23.5]} 11... Rb8 {[%clk 0:01:21]} 12. Qxe4+ {[%clk 0:02:22.8]} 12...
Be7 {[%clk 0:01:20.8]} 13. Bxd7+ {[%clk 0:02:19.7]} 13... Kxd7 {[%clk
0:01:21.7]} 14. Qa4+ {[%clk 0:02:14.3]} 14... Kc8 {[%clk 0:01:13.9]} 15. O-O
{[%clk 0:02:10.5]} 15... Rf8 {[%clk 0:01:02.8]} 16. Nc3 {[%clk 0:02:10]} 16...
Rb7 {[%clk 0:00:35.7]} 17. Rae1 {[%clk 0:02:02]} 17... Qh4 {[%clk 0:00:34.9]}
18. Re4 {[%clk 0:02:00.4]} 18... Qg5 {[%clk 0:00:32.6]} 19. h4 {[%clk
0:01:55.9]} 1-0

[Event "*** Titled Tuesday Blitz"]
[Site "Chess.com"]
[Date "2020.03.03"]
[Round "9"]
[White "BeanScreen"]
[Black "pouya21"]
[Result "0-1"]
[WhiteElo "2645"]
[BlackElo "2820"]
[TimeControl "180+1"]
[EndTime "14:43:55 PST"]
[Termination "pouya21 won by checkmate"]

1. e4 {[%clk 0:03:00.5]} 1... c5 {[%clk 0:02:59.9]} 2. Nf3 {[%clk 0:03:00.9]}
2... d6 {[%clk 0:03:00.2]} 3. d4 {[%clk 0:03:01.5]} 3... cxd4 {[%clk 0:03:01.1]}
4. Nxd4 {[%clk 0:03:02.4]} 4... Nf6 {[%clk 0:03:00.4]} 5. Nc3 {[%clk 0:03:02.8]}
5... a6 {[%clk 0:03:00.8]} 6. Be3 {[%clk 0:03:03.3]} 6... e5 {[%clk 0:03:00.8]}
7. Nb3 {[%clk 0:03:03.8]} 7... Be6 {[%clk 0:03:00.7]} 8. h3 {[%clk 0:03:04.5]}
8... Nc6 {[%clk 0:02:59.4]} 9. f4 {[%clk 0:03:04.4]} 9... exf4 {[%clk
0:02:49.1]} 10. Bxf4 {[%clk 0:03:05.3]} 10... Be7 {[%clk 0:02:48.6]} 11. Qe2
{[%clk 0:03:05.3]} 11... Ne5 {[%clk 0:02:49.1]} 12. O-O-O {[%clk 0:03:05.4]}
12... Nfd7 {[%clk 0:02:49.6]} 13. Qe3 {[%clk 0:03:04.8]} 13... Rc8 {[%clk
0:02:49.4]} 14. g4 {[%clk 0:03:04.2]} 14... O-O {[%clk 0:02:48.7]} 15. g5 {[%clk
0:03:02.2]} 15... b5 {[%clk 0:02:47.8]} 16. h4 {[%clk 0:03:00.8]} 16... Qb6
{[%clk 0:02:38.1]} 17. Qg3 {[%clk 0:02:52]} 17... b4 {[%clk 0:02:37.5]} 18. Nd5
{[%clk 0:02:51.4]} 18... Bxd5 {[%clk 0:02:37.7]} 19. exd5 {[%clk 0:02:51]} 19...
a5 {[%clk 0:02:37.9]} 20. Kb1 {[%clk 0:02:47.6]} 20... a4 {[%clk 0:02:37.7]} 21.
Nc1 {[%clk 0:02:42.8]} 21... Qc5 {[%clk 0:02:29.3]} 22. Rd2 {[%clk 0:02:38.5]}
22... Nb6 {[%clk 0:02:16.4]} 23. h5 {[%clk 0:02:34.9]} 23... Nbc4 {[%clk
0:02:13.2]} 24. Rg2 {[%clk 0:02:22.1]} 24... Qd4 {[%clk 0:02:10.6]} 25. Bxe5
{[%clk 0:02:16.3]} 25... Nxe5 {[%clk 0:02:06.4]} 26. g6 {[%clk 0:02:08.2]} 26...
fxg6 {[%clk 0:02:05.4]} 27. hxg6 {[%clk 0:02:09.1]} 27... h6 {[%clk 0:02:05.8]}
28. Qh3 {[%clk 0:01:52.1]} 28... Bf6 {[%clk 0:01:44.7]} 29. Qe6+ {[%clk
0:01:01.1]} 29... Kh8 {[%clk 0:01:42.9]} 30. Rgh2 {[%clk 0:01:01.8]} 30... Qxb2+
{[%clk 0:01:42]} 31. Kxb2 {[%clk 0:01:00.4]} 31... Nc4+ {[%clk 0:01:42]} 32. Kb1
{[%clk 0:01:00.7]} 32... Na3# {[%clk 0:01:41.9]} 0-1

[Event "*** Titled Tuesday Blitz"]
[Site "Chess.com"]
[Date "2020.03.03"]
[Round "9"]
[White "DonPreuss"]
[Black "Region_07"]
[Result "0-1"]
[WhiteElo "2201"]
[BlackElo "2408"]
[TimeControl "180+1"]
[EndTime "14:43:56 PST"]
[Termination "Region_07 won by resignation"]

1. Nc3 {[%clk 0:03:00.9]} 1... d5 {[%clk 0:02:58.9]} 2. e4 {[%clk 0:02:59.8]}
2... c6 {[%clk 0:02:53]} 3. d4 {[%clk 0:02:57.1]} 3... dxe4 {[%clk 0:02:52.3]}
4. f3 {[%clk 0:02:57.5]} 4... e3 {[%clk 0:02:36.6]} 5. Bxe3 {[%clk 0:02:56.7]}
5... Nf6 {[%clk 0:02:37.2]} 6. a3 {[%clk 0:02:49.7]} 6... Bf5 {[%clk 0:02:33.5]}
7. Nge2 {[%clk 0:02:49]} 7... e6 {[%clk 0:02:33.3]} 8. Ng3 {[%clk 0:02:47.6]}
8... Bg6 {[%clk 0:02:33.2]} 9. Bd3 {[%clk 0:02:47.5]} 9... Nbd7 {[%clk
0:02:32.2]} 10. O-O {[%clk 0:02:45.8]} 10... Qc7 {[%clk 0:02:29.5]} 11. Nce4
{[%clk 0:02:32]} 11... Nd5 {[%clk 0:02:26.2]} 12. Bd2 {[%clk 0:02:30.5]} 12...
N7f6 {[%clk 0:02:20.7]} 13. c4 {[%clk 0:02:29.1]} 13... Nf4 {[%clk 0:02:20.4]}
14. Nxf6+ {[%clk 0:02:23.5]} 14... gxf6 {[%clk 0:02:18.9]} 15. Bxf4 {[%clk
0:02:18.3]} 15... Qxf4 {[%clk 0:02:17.5]} 16. Ne4 {[%clk 0:02:09.1]} 16... O-O-O
{[%clk 0:02:01]} 17. Bc2 {[%clk 0:01:26.1]} 17... f5 {[%clk 0:01:52.3]} 18. Nf2
{[%clk 0:01:21]} 18... Qxd4 {[%clk 0:01:51]} 19. Qe2 {[%clk 0:01:20]} 19... Bd6
{[%clk 0:01:42.5]} 20. Rfd1 {[%clk 0:01:13.5]} 20... Qe5 {[%clk 0:01:41.6]} 21.
Qxe5 {[%clk 0:01:03.3]} 21... Bxe5 {[%clk 0:01:42.5]} 22. Rab1 {[%clk
0:00:59.5]} 22... Rxd1+ {[%clk 0:01:39.6]} 23. Nxd1 {[%clk 0:01:00.4]} 23... Rd8
{[%clk 0:01:36.6]} 24. Nf2 {[%clk 0:00:57.9]} 24... Rd2 {[%clk 0:01:34.3]} 25.
Ba4 {[%clk 0:00:52.7]} 25... Bd4 {[%clk 0:01:30]} 26. Rf1 {[%clk 0:00:51.5]}
26... f4 {[%clk 0:01:29.8]} 27. b4 {[%clk 0:00:46.8]} 27... Bd3 {[%clk
0:01:27.1]} 0-1

[Event "*** Titled Tuesday Blitz"]
[Site "Chess.com"]
[Date "2020.03.03"]
[Round "9"]
[White "LarissaSteenbekkers"]
[Black "VFernandezB"]
[Result "0-1"]
[WhiteElo "1872"]
[BlackElo "2254"]
[TimeControl "180+1"]
[EndTime "14:43:57 PST"]
[Termination "VFernandezB won by resignation"]

1. e4 {[%clk 0:03:00.9]} 1... c5 {[%clk 0:02:24.3]} 2. Nc3 {[%clk 0:02:57.3]}
2... Nc6 {[%clk 0:02:24.8]} 3. Bb5 {[%clk 0:02:55.8]} 3... g6 {[%clk 0:02:25.7]}
4. f4 {[%clk 0:02:52.7]} 4... Bg7 {[%clk 0:02:25.7]} 5. Bxc6 {[%clk 0:02:51]}
5... bxc6 {[%clk 0:02:25.3]} 6. Nf3 {[%clk 0:02:49.4]} 6... d5 {[%clk
0:02:25.5]} 7. d3 {[%clk 0:02:46.6]} 7... Bg4 {[%clk 0:02:25.1]} 8. O-O {[%clk
0:02:44.6]} 8... e6 {[%clk 0:02:23.7]} 9. Na4 {[%clk 0:02:41.8]} 9... c4 {[%clk
0:02:18.2]} 10. Qe1 {[%clk 0:02:25.1]} 10... cxd3 {[%clk 0:02:17.3]} 11. cxd3
{[%clk 0:02:22.6]} 11... Bxf3 {[%clk 0:02:16.5]} 12. Rxf3 {[%clk 0:02:19.7]}
12... Ne7 {[%clk 0:02:15.8]} 13. f5 {[%clk 0:02:16.7]} 13... Bd4+ {[%clk
0:02:12.2]} 14. Be3 {[%clk 0:02:11.2]} 14... Bxe3+ {[%clk 0:02:11]} 15. Qxe3
{[%clk 0:02:08.9]} 15... dxe4 {[%clk 0:02:11]} 16. dxe4 {[%clk 0:02:06.8]} 16...
e5 {[%clk 0:01:56.6]} 17. f6 {[%clk 0:02:02.9]} 17... Nc8 {[%clk 0:01:54.3]} 18.
Qc5 {[%clk 0:01:57]} 18... Qd6 {[%clk 0:01:52.4]} 19. Qc3 {[%clk 0:01:47]} 19...
Qd4+ {[%clk 0:01:50.5]} 20. Qxd4 {[%clk 0:01:45.1]} 20... exd4 {[%clk
0:01:50.7]} 21. e5 {[%clk 0:01:44.5]} 21... Nb6 {[%clk 0:01:49.8]} 22. Nc5
{[%clk 0:01:41.5]} 22... O-O-O {[%clk 0:01:49.6]} 23. a4 {[%clk 0:01:35.4]}
23... Nd5 {[%clk 0:01:48.8]} 24. Rd3 {[%clk 0:01:31.3]} 24... Nb4 {[%clk
0:01:47.2]} 25. Rd2 {[%clk 0:01:26.7]} 25... Rd5 {[%clk 0:01:45.5]} 26. Rc1
{[%clk 0:01:21.8]} 26... Rhd8 {[%clk 0:01:41.5]} 27. Rc4 {[%clk 0:01:19.5]}
27... a5 {[%clk 0:01:40.2]} 28. Nd3 {[%clk 0:01:16.3]} 28... Nxd3 {[%clk
0:01:36.2]} 29. Rxd3 {[%clk 0:01:14.3]} 29... c5 {[%clk 0:01:36.3]} 30. Rb3
{[%clk 0:01:07.1]} 30... Rxe5 {[%clk 0:01:35.5]} 31. Rb5 {[%clk 0:01:04.6]}
31... d3 {[%clk 0:01:35.8]} 32. Rcxc5+ {[%clk 0:01:03.4]} 32... Rxc5 {[%clk
0:01:35.7]} 33. Rxc5+ {[%clk 0:01:03]} 33... Kb7 {[%clk 0:01:36.6]} 34. Rb5+
{[%clk 0:01:02.1]} 34... Kc6 {[%clk 0:01:35.1]} 35. Rxa5 {[%clk 0:01:01.1]}
35... d2 {[%clk 0:01:35.3]} 0-1

[Event "*** Titled Tuesday Blitz"]
[Site "Chess.com"]
[Date "2020.03.03"]
[Round "9"]
[White "Bigfish1995"]
[Black "EugeneRougon"]
[Result "1-0"]
[WhiteElo "3074"]
[BlackElo "2694"]
[TimeControl "180+1"]
[EndTime "14:44:10 PST"]
[Termination "Bigfish1995 won by resignation"]

1. d4 {[%clk 0:03:00.6]} 1... d5 {[%clk 0:02:59.4]} 2. c4 {[%clk 0:03:00.5]}
2... c6 {[%clk 0:02:59.8]} 3. Nf3 {[%clk 0:03:00.9]} 3... Nf6 {[%clk 0:03:00.1]}
4. e3 {[%clk 0:02:59.4]} 4... e6 {[%clk 0:02:58]} 5. Nbd2 {[%clk 0:02:58.8]}
5... c5 {[%clk 0:02:54.1]} 6. cxd5 {[%clk 0:02:58.8]} 6... Nxd5 {[%clk
0:02:49.4]} 7. e4 {[%clk 0:02:58.2]} 7... Nf6 {[%clk 0:02:42.2]} 8. e5 {[%clk
0:02:58.2]} 8... Nd5 {[%clk 0:02:42.2]} 9. dxc5 {[%clk 0:02:58.2]} 9... Bxc5
{[%clk 0:02:40.5]} 10. Ne4 {[%clk 0:02:58.7]} 10... Be7 {[%clk 0:02:30.9]} 11.
Bc4 {[%clk 0:02:56.2]} 11... O-O {[%clk 0:02:27]} 12. O-O {[%clk 0:02:54.4]}
12... b6 {[%clk 0:01:58.1]} 13. Qe2 {[%clk 0:02:52.6]} 13... Bb7 {[%clk
0:01:58.4]} 14. Bg5 {[%clk 0:02:47.5]} 14... Bxg5 {[%clk 0:01:54.5]} 15. Nfxg5
{[%clk 0:02:47.8]} 15... h6 {[%clk 0:01:51]} 16. Nh3 {[%clk 0:02:46.4]} 16...
Nd7 {[%clk 0:01:42.4]} 17. Nd6 {[%clk 0:02:46.2]} 17... Bc6 {[%clk 0:01:31.8]}
18. f4 {[%clk 0:02:46.7]} 18... Rb8 {[%clk 0:01:22.5]} 19. Rad1 {[%clk
0:02:45.3]} 19... b5 {[%clk 0:01:21.1]} 20. Bxd5 {[%clk 0:02:45.7]} 20... Bxd5
{[%clk 0:01:19]} 21. f5 {[%clk 0:02:45.2]} 21... f6 {[%clk 0:01:02.4]} 22. fxe6
{[%clk 0:02:37.2]} 22... Bxe6 {[%clk 0:01:02]} 23. Nf4 {[%clk 0:02:37.2]} 23...
Bxa2 {[%clk 0:00:46.4]} 24. e6 {[%clk 0:02:36.5]} 24... Ne5 {[%clk 0:00:46.5]}
25. Kh1 {[%clk 0:02:23.9]} 25... Qe7 {[%clk 0:00:42.8]} 26. Nf5 {[%clk
0:02:22.2]} 26... Qb4 {[%clk 0:00:31.5]} 27. Rd7 {[%clk 0:02:07.9]} 27... Nxd7
{[%clk 0:00:21.7]} 28. Qg4 {[%clk 0:02:07.1]} 28... g5 {[%clk 0:00:14.4]} 29.
Nxh6+ {[%clk 0:02:06.8]} 29... Kh8 {[%clk 0:00:10.5]} 30. Ng6+ {[%clk
0:02:05.4]} 30... Kg7 {[%clk 0:00:10.3]} 31. Qxb4 {[%clk 0:02:04.8]} 1-0